bitfinex/quotes_BTCUSD_20260103
["timestamp","ask_amount","ask_price","bid_price","bid_amount"]
[1767411620986,0.01108389,90221.0,90216.0,0.0110845]
[1767411621184,0.01108377,90222.0,90216.0,0.0110845]
[1767411621391,0.01108401,90220.0,90215.0,0.04891678]
[1767411621771,0.01108401,90220.0,90215.0,0.06000141]
[1767411624113,0.01108389,90221.0,90216.0,0.0110845]
[1767411624318,0.01108389,90221.0,90215.0,0.06000141]
[1767411624721,0.01108377,90222.0,90216.0,0.0110845]
[1767411625448,0.01108364,90223.0,90217.0,0.01108438]
[1767411625997,0.01108364,90223.0,90218.0,0.01108426]
[1767411626868,0.01108352,90224.0,90219.0,0.01108413]
[1767411627165,0.01104172,90224.0,90218.0,0.01108426]
[1767411627346,0.01104172,90224.0,90219.0,0.01108413]
[1767411627723,0.01104172,90224.0,90218.0,0.01108426]
[1767411628309,0.01108364,90223.0,90218.0,0.01108426]
[1767411628928,0.01104172,90224.0,90218.0,0.01108426]
[1767411629668,0.01108364,90223.0,90217.0,0.01108438]
[1767411629869,0.01108364,90223.0,90218.0,0.01108426]
[1767411630984,0.01108364,90223.0,90217.0,0.01108438]
[1767411631567,0.01104204,90223.0,90217.0,0.01108438]
[1767411632811,0.01108377,90222.0,90216.0,0.06650644]
[1767411632946,0.01108377,90222.0,90217.0,0.01108438]
[1767411633885,0.01108364,90223.0,90217.0,0.01108438]
[1767411634093,0.01108364,90223.0,90216.0,0.06650644]
[1767411634673,0.01108364,90223.0,90218.0,0.01108426]
[1767411635103,0.01108364,90223.0,90217.0,0.01108438]
[1767411635311,0.01108364,90223.0,90218.0,0.01108426]
[1767411635469,0.01108364,90223.0,90217.0,0.01108438]
[1767411636880,0.01108364,90223.0,90218.0,0.01108426]
[1767411637562,0.01104172,90224.0,90218.0,0.01108426]
[1767411637718,0.01108364,90223.0,90218.0,0.01108426]
[1767411638275,0.01104172,90224.0,90218.0,0.01108426]
[1767411638808,0.01108278,90230.0,90224.0,0.000899]
[1767411639142,0.0112316,90231.0,90226.0,0.05903835]
[1767411639339,0.0112316,90231.0,90227.0,0.01108315]
[1767411639743,0.0112316,90231.0,90228.0,0.01108303]
[1767411639950,0.0103326,90231.0,90228.0,0.05950956]
[1767411640718,0.0103326,90231.0,90228.0,0.11492421]
[1767411641137,0.0103326,90231.0,90229.0,0.0554141]
[1767411642340,6.496801,90234.0,90231.0,0.06649548]
[1767411642542,6.496801,90234.0,90230.0,0.01108278]
[1767411642905,6.496801,90234.0,90231.0,0.01108266]
[1767411644211,6.496801,90234.0,90230.0,0.01108278]
[1767411644363,0.000999,90231.0,90230.0,0.01108278]
[1767411644578,6.496801,90234.0,90230.0,0.01108278]
[1767411644779,6.50788329,90234.0,90227.0,0.01108315]
[1767411645514,0.01108241,90233.0,90227.0,0.01108315]
[1767411645714,0.01108241,90233.0,90228.0,0.01108303]
[1767411645920,6.50788329,90234.0,90228.0,0.01008403]
[1767411646214,0.01108241,90233.0,90227.0,0.01108315]
[1767411647282,0.01108241,90233.0,90228.0,0.01108303]
[1767411647512,0.01108241,90233.0,90227.0,0.01108315]
[1767411647858,6.50788329,90234.0,90228.0,0.01108303]
[1767411648588,6.496801,90234.0,90229.0,0.01108291]
[1767411648794,0.01108241,90233.0,90228.0,0.01108303]
[1767411649171,6.50788329,90234.0,90229.0,0.01108291]
[1767411649310,0.01108241,90233.0,90228.0,0.01108303]
[1767411649713,6.50788329,90234.0,90228.0,0.01108303]
[1767411651078,6.50788329,90234.0,90229.0,0.01108291]
[1767411651446,6.496801,90234.0,90230.0,0.05950931]
[1767411651651,6.495802,90234.0,90232.0,0.04842653]
[1767411652096,6.495802,90234.0,90231.0,0.01108266]
[1767411652801,6.495802,90234.0,90231.0,0.06649545]
[1767411654177,6.495802,90234.0,90231.0,0.01108266]
[1767411657787,6.495802,90234.0,90232.0,0.04842653]
[1767411657788,6.160202,90234.0,90232.0,0.04842653]
[1767411659372,6.160202,90234.0,90232.0,0.10383884]
[1767411660465,6.160202,90234.0,90232.0,0.04015141]
[1767411661920,6.160202,90234.0,90231.0,0.01108266]
[1767411665846,6.160202,90234.0,90231.0,0.06649541]
[1767411666999,6.160202,90234.0,90231.0,0.01108266]
[1767411667205,0.01108,90233.0,90231.0,0.01108266]
[1767411667403,0.000999,90231.0,90230.0,0.06649629]
[1767411667834,0.01108,90233.0,90230.0,0.06649629]
[1767411668782,6.160202,90234.0,90230.0,0.06649629]
[1767411668783,5.11058207,90234.0,90232.0,0.05541271]
[1767411669033,4.7820452,90234.0,90232.0,0.05541271]
[1767411669232,4.28374453,90234.0,90232.0,0.05541271]
[1767411669379,4.18107958,90234.0,90231.0,0.0443421]
[1767411669580,4.18107958,90234.0,90230.0,0.06649629]
[1767411669581,0.000999,90231.0,90229.0,0.01108291]
[1767411669783,0.01108,90233.0,90222.0,0.04816502]
[1767411669784,0.01108254,90232.0,90222.0,0.05924879]
[1767411670037,0.01108,90230.0,90222.0,0.05924879]
[1767411670358,0.01108,90230.0,90224.0,0.01108352]
[1767411670705,0.01108,90229.0,90223.0,0.01108364]
[1767411670934,0.01108,90229.0,90224.0,0.01108352]
[1767411671331,0.01108,90228.0,90224.0,0.01108352]
[1767411671649,0.01108,90227.0,90224.0,0.01108352]
[1767411672010,0.01108,90226.0,90224.0,0.01108352]
[1767411672192,0.01108,90225.0,90224.0,0.01108352]
[1767411672396,0.01108,90225.0,90223.0,0.05924866]
[1767411673256,0.01108,90226.0,90224.0,0.01108352]
[1767411673412,0.01108,90226.0,90223.0,0.05924866]
[1767411674044,0.01108,90226.0,90223.0,0.04816502]
[1767411674306,0.01108,90227.0,90224.0,0.01108352]
[1767411674631,0.01108,90228.0,90224.0,0.01108352]
[1767411675232,0.01108,90228.0,90223.0,0.05924866]
[1767411675654,0.01108,90228.0,90224.0,0.01108352]
[1767411675850,0.01108,90228.0,90223.0,0.05924866]
[1767411676475,0.01108,90229.0,90225.0,0.0110834]
[1767411676805,0.01108,90230.0,90224.0,0.01108352]
[1767411678116,0.01108,90230.0,90223.0,0.05924866]
[1767411678305,0.01108,90230.0,90224.0,0.01108352]
[1767411679452,0.01108,90230.0,90223.0,0.05924866]
[1767411679679,0.01108,90230.0,90224.0,0.01108352]
[1767411680651,0.01108,90230.0,90223.0,0.05924866]
[1767411681675,0.02216278,90230.0,90223.0,0.04816502]
[1767411681896,0.01108291,90229.0,90223.0,0.04816502]
[1767411682103,0.02216278,90230.0,90223.0,0.04816502]
[1767411682281,0.01108291,90229.0,90223.0,0.04816502]
[1767411682488,0.01108,90230.0,90223.0,0.04816502]
[1767411682827,0.02216278,90230.0,90223.0,0.05924866]
[1767411683562,0.01108,90230.0,90225.0,0.0110834]
[1767411684617,0.01108,90230.0,90226.0,0.01108327]
[1767411684820,0.010081,90230.0,90225.0,0.0110834]
[1767411685021,0.010081,90230.0,90225.0,0.05924842]
[1767411685165,0.010081,90230.0,90225.0,0.04816502]
[1767411685368,0.010081,90230.0,90226.0,0.05924829]
[1767411685570,4.15990727,90234.0,90231.0,0.04816502]
[1767411685777,0.01108,90233.0,90231.0,0.04816502]
[1767411687001,0.01108,90233.0,90230.0,0.06649618]
[1767411687201,0.01108,90233.0,90230.0,0.1146612]
[1767411687587,0.01108,90233.0,90230.0,0.0592478]
[1767411687795,4.15990727,90234.0,90230.0,0.0592478]
[1767411687796,4.10990727,90234.0,90231.0,0.01108266]
[1767411687998,0.01108,90233.0,90232.0,0.04816502]
[1767411688323,0.01108,90233.0,90231.0,0.01108266]
[1767411689401,0.01108,90233.0,90230.0,0.0609365]
[1767411690358,0.01108,90233.0,90230.0,0.11634993]
[1767411690504,0.01108,90233.0,90231.0,0.04985372]
[1767411691337,4.10990727,90234.0,90231.0,0.06093638]
[1767411691546,4.10990727,90234.0,90231.0,0.01108266]
[1767411691910,4.10986552,90234.0,90231.0,0.11634915]
[1767411692309,4.02223935,90234.0,90233.0,0.05541209]
[1767411693462,3.98898495,90234.0,90233.0,0.05541209]
[1767411693778,3.95573055,90234.0,90233.0,0.05541209]
[1767411693993,3.92247615,90234.0,90233.0,0.05541209]
[1767411695781,3.88922373,90234.0,90233.0,0.05541209]
[1767411696536,0.000999,90233.0,90231.0,0.06649543]
[1767411696934,3.88922373,90234.0,90231.0,0.06649543]
[1767411697187,3.88922373,90234.0,90231.0,0.01108266]
[1767411697515,3.88922373,90234.0,90230.0,0.01108278]
[1767411697718,3.88922373,90234.0,90228.0,0.01108303]
[1767411697937,0.04726586,90233.0,90230.0,0.01108278]
[1767411698137,0.04726586,90233.0,90229.0,0.0067453]
[1767411698337,3.88922373,90234.0,90230.0,0.01108278]
[1767411698537,3.88922373,90234.0,90231.0,0.01108266]
[1767411699281,3.88922373,90234.0,90231.0,0.06649542]
[1767411700030,3.88822473,90234.0,90232.0,0.05541215]
[1767411703089,3.88822473,90234.0,90232.0,0.05441315]
[1767411703326,3.88822473,90234.0,90231.0,0.06649542]
[1767411703505,3.88822473,90234.0,90231.0,0.01108266]
[1767411707338,3.88822473,90234.0,90230.0,0.01108278]
[1767411708107,3.88822473,90234.0,90231.0,0.01108266]
[1767411709466,3.88822473,90234.0,90231.0,0.06649581]
[1767411709817,3.88822473,90234.0,90231.0,0.06645165]
[1767411712744,3.88822473,90234.0,90231.0,0.0110385]
[1767411712972,3.88822473,90234.0,90230.0,0.01108278]
[1767411713175,3.88822473,90234.0,90231.0,0.01108266]
[1767411718283,3.88822473,90234.0,90231.0,0.06649556]
[1767411720819,3.88822473,90234.0,90231.0,0.01108266]
[1767411720970,0.04675816,90233.0,90227.0,0.00649029]
[1767411721168,3.88822473,90234.0,90226.0,0.22803007]
[1767411721400,3.88822473,90234.0,90231.0,0.01108266]
[1767411722380,3.88822473,90234.0,90231.0,0.06649556]
[1767411722772,3.88722573,90234.0,90233.0,0.05541209]
[1767411722980,3.88722573,90234.0,90231.0,0.06649556]
[1767411723386,3.88722573,90234.0,90233.0,0.05541209]
[1767411724548,3.37007696,90234.0,90233.0,0.05541209]
[1767411724721,2.99522623,90234.0,90233.0,0.10528774]
[1767411725090,2.94522623,90234.0,90233.0,0.05541209]
[1767411725290,2.32201869,90234.0,90233.0,0.05541209]
[1767411725918,2.32201869,90234.0,90231.0,0.06649556]
[1767411726434,2.27201869,90234.0,90233.0,0.05541209]
[1767411728471,1.75307051,90234.0,90233.0,0.05541209]
[1767411728895,1.74047466,90234.0,90233.0,0.05541209]
[1767411730414,1.74047466,90234.0,90233.0,0.05575646]
[1767411730742,1.116435,90234.0,90233.0,0.05575646]
[1767411735064,0.21626741,90234.0,90233.0,0.05575646]
[1767411735231,0.01108,90238.0,90235.0,0.01108217]
[1767411735656,0.01108,90238.0,90234.0,0.055411]
[1767411735657,0.01108,90238.0,90234.0,0.01108229]
[1767411735853,0.01108,90238.0,90233.0,0.06797907]
[1767411736056,0.01108,90238.0,90233.0,0.0664945]
[1767411736402,0.01108,90238.0,90233.0,0.01108241]
[1767411736525,0.01108,90238.0,90234.0,0.01108229]
[1767411736944,0.01108,90238.0,90233.0,0.01108241]
[1767411737727,0.01108,90238.0,90235.0,0.01108217]
[1767411738676,0.01108,90238.0,90234.0,0.05541148]
[1767411738677,0.000999,90235.0,90234.0,0.00148456]
[1767411738839,0.01108,90237.0,90233.0,0.01108241]
[1767411739203,0.01108,90237.0,90232.0,0.01108254]
[1767411739377,0.04675816,90236.0,90235.0,0.00064557]
[1767411739524,0.01108,90237.0,90231.0,0.06649518]
[1767411739525,0.04675816,90234.0,90231.0,0.03866013]
[1767411739728,0.04675816,90234.0,90229.0,0.0551572]
[1767411740159,0.04675816,90234.0,90216.0,0.04987565]
[1767411740160,0.05783873,90248.0,90234.0,0.01108229]
[1767411740367,0.05783816,90247.0,90236.0,0.01108205]
[1767411740561,0.05783816,90247.0,90237.0,0.0003309]
[1767411740796,0.05783816,90247.0,90236.0,0.01108205]
[1767411740973,0.05783816,90247.0,90246.0,0.0003006]
[1767411741186,0.05634516,90247.0,90246.0,6e-07]
[1767411742395,0.01108,90247.0,90246.0,6e-07]
[1767411742758,0.05783816,90247.0,90246.0,6e-07]
[1767411743164,0.04675816,90247.0,90246.0,6e-07]
[1767411743396,0.10215816,90247.0,90246.0,6e-07]
[1767411748032,0.0554,90247.0,90246.0,6e-07]
[1767411748246,0.01123205,90249.0,90246.0,6e-07]
[1767411748410,0.01108,90248.0,90236.0,0.01108205]
[1767411748598,0.0554,90247.0,90236.0,0.00037617]
[1767411748801,0.0554,90247.0,90234.0,0.01108229]
[1767411749000,0.0554,90247.0,90235.0,0.04752722]
[1767411749331,0.0554,90247.0,90235.0,0.05860939]
[1767411749479,0.0001516,90249.0,90239.0,0.04644341]
[1767411749681,0.0554,90248.0,90240.0,0.04644341]
[1767411750131,0.04529655,90247.0,90236.0,0.01108205]
[1767411750336,0.04529655,90247.0,90237.0,0.01108192]
[1767411750500,0.04529655,90247.0,90235.0,0.01108217]
[1767411750701,0.04529655,90247.0,90236.0,0.01108205]
[1767411751033,0.04529655,90247.0,90237.0,0.24326546]
[1767411751438,0.0554,90248.0,90237.0,0.24326546]
[1767411752502,0.03677951,90247.0,90237.0,0.24326546]
[1767411752684,0.0554,90248.0,90237.0,0.24326546]
[1767411752882,0.03677951,90247.0,90237.0,0.20648595]
[1767411753118,0.0554,90248.0,90237.0,0.24326546]
[1767411753726,0.0554,90248.0,90237.0,0.25434738]
[1767411753978,0.01108,90247.0,90237.0,0.25434738]
[1767411754117,0.01108,90247.0,90238.0,0.04644341]
[1767411754457,0.01108,90247.0,90238.0,0.05752521]
[1767411754623,0.01108,90247.0,90238.0,0.04644341]
[1767411755357,0.01108,90247.0,90238.0,0.05752521]
[1767411755535,0.01108,90247.0,90237.0,0.25434738]
[1767411756141,0.01108,90247.0,90238.0,0.04644341]
[1767411757295,0.01108,90246.0,90238.0,0.05752521]
[1767411757478,0.0001516,90249.0,90246.0,0.04644341]
[1767411757661,0.0001516,90249.0,90246.0,0.04574441]
[1767411758294,0.010929,90248.0,90240.0,0.04644341]
[1767411758494,0.01107996,90253.0,90249.0,0.04644341]
[1767411758689,0.02216008,90252.0,90249.0,0.04644341]
[1767411758913,0.01108,90252.0,90249.0,0.04644341]
[1767411760095,0.02216008,90252.0,90249.0,0.04629241]
[1767411760608,0.02216008,90252.0,90249.0,0.00803537]
[1767411761426,0.06648089,90252.0,90249.0,0.00803537]
[1767411761574,0.01108,90251.0,90249.0,0.00803537]
[1767411761977,0.01108033,90250.0,90241.0,0.04644341]
[1767411762430,0.0221602,90251.0,90241.0,0.04644341]
[1767411762822,0.01108033,90250.0,90241.0,0.04644341]
[1767411763337,0.0221602,90251.0,90241.0,0.04644341]
[1767411763641,0.00049166,90254.0,90251.0,0.000999]
[1767411763797,0.01108,90253.0,90251.0,0.04644341]
[1767411764326,0.01108,90253.0,90241.0,0.05752484]
[1767411764533,0.0115715,90254.0,90241.0,0.05752484]
[1767411764716,0.01108,90253.0,90241.0,0.04644341]
[1767411765108,0.01108,90253.0,90241.0,0.05752484]
[1767411765573,0.01108,90253.0,90241.0,0.04644341]
[1767411765759,0.01108,90253.0,90243.0,0.04644341]
[1767411765916,0.04481166,90254.0,90253.0,0.000999]
[1767411766264,0.05589166,90254.0,90253.0,0.000999]
[1767411766463,0.01157166,90254.0,90248.0,0.05752398]
[1767411766640,0.04432,90259.0,90253.0,0.04644341]
[1767411767161,0.01108,90258.0,90249.0,0.01108045]
[1767411767314,0.01107873,90263.0,90249.0,0.25434591]
[1767411767510,0.06647209,90264.0,90249.0,0.25434591]
[1767411767511,0.01107861,90264.0,90249.0,0.25434591]
[1767411767715,0.01107898,90261.0,90249.0,0.24326546]
[1767411767951,0.01108,90260.0,90249.0,0.24326546]
[1767411768314,0.01108,90260.0,90250.0,0.24326546]
[1767411768610,0.01107898,90261.0,90250.0,0.24326546]
[1767411768807,0.01108,90260.0,90250.0,0.24326546]
[1767411769064,0.01108,90259.0,90250.0,0.24326546]
[1767411769426,0.01108,90258.0,90250.0,0.25434579]
[1767411769627,0.010081,90258.0,90251.0,0.0110802]
[1767411769894,0.010081,90258.0,90250.0,0.01108033]
[1767411770189,0.01108,90257.0,90252.0,0.04644341]
[1767411770830,0.01108,90257.0,90250.0,0.01108033]
[1767411771078,0.01108,90257.0,90251.0,0.0110802]
[1767411771382,0.01108,90257.0,90250.0,0.01108033]
[1767411771910,0.01108,90257.0,90251.0,0.0110802]
[1767411772532,0.01108,90257.0,90252.0,0.01108008]
[1767411772811,9.981e-05,90260.0,90256.0,0.04644341]
[1767411773048,0.01122972,90268.0,90256.0,0.04644341]
[1767411773049,0.0001516,90268.0,90256.0,0.04644341]
[1767411773264,0.01108,90267.0,90258.0,0.24326546]
[1767411773472,0.01108,90266.0,90258.0,0.25434481]
[1767411773623,0.01108,90266.0,90258.0,0.01107935]
[1767411773806,0.01108,90265.0,90260.0,0.0110791]
[1767411774006,0.01108,90265.0,90259.0,0.01107922]
[1767411774207,0.01108,90265.0,90258.0,0.01107935]
[1767411774408,0.01108,90265.0,90259.0,0.05752263]
[1767411774613,0.0001516,90268.0,90259.0,0.05752263]
[1767411774810,0.01108,90267.0,90260.0,0.0110791]
[1767411775255,0.01108,90267.0,90259.0,0.05752263]
[1767411775625,0.01108,90267.0,90259.0,0.04644341]
[1767411775809,0.01108,90267.0,90260.0,0.0110791]
[1767411776010,0.01108,90267.0,90258.0,0.25434481]
[1767411776223,0.01108,90267.0,90259.0,0.01107922]
[1767411778083,0.01108,90266.0,90260.0,0.0110791]
[1767411778284,0.01108,90266.0,90262.0,0.01107885]
[1767411778715,0.01108,90265.0,90261.0,0.05752239]
[1767411778911,0.01108,90265.0,90260.0,0.0110791]
[1767411779120,0.01108,90265.0,90259.0,0.01107922]
[1767411779555,0.01108,90265.0,90260.0,0.05539552]
[1767411779759,0.01108,90265.0,90260.0,0.0110791]
[1767411779935,0.01108,90265.0,90261.0,0.01107898]
[1767411780690,0.01108,90265.0,90262.0,0.01107885]
[1767411780898,0.01107714,90276.0,90262.0,0.04798334]
[1767411781074,0.0110775,90273.0,90262.0,0.04798334]
[1767411781273,0.0110775,90273.0,90262.0,0.04698434]
[1767411781477,0.02215726,90275.0,90262.0,0.04698434]
[1767411781658,0.02215726,90275.0,90260.0,0.25434456]
[1767411781834,0.02215726,90275.0,90262.0,0.01107885]
[1767411782038,0.01107738,90274.0,90261.0,0.04798334]
[1767411782254,0.0110775,90273.0,90261.0,0.04798334]
[1767411782460,0.01108,90272.0,90261.0,0.05906232]
[1767411783583,0.01108,90272.0,90262.0,0.01107885]
[1767411783745,0.01108,90272.0,90261.0,0.05906232]
[1767411784468,0.01108,90272.0,90261.0,0.04798334]
[1767411785333,0.02215763,90272.0,90261.0,0.04798334]
[1767411785510,0.01107787,90270.0,90261.0,0.04798334]
[1767411785674,0.01107775,90271.0,90261.0,0.04798334]
[1767411789701,0.02215763,90272.0,90261.0,0.04798334]
[1767411789916,0.01108,90272.0,90261.0,0.04798334]
[1767411790322,0.02215763,90272.0,90260.0,0.24326546]
[1767411790957,0.01107775,90271.0,90260.0,0.24326546]
[1767411791175,0.01108,90272.0,90260.0,0.24326546]
[1767411791547,0.01108,90272.0,90260.0,0.30974]
[1767411792171,0.01108,90272.0,90262.0,0.01107885]
[1767411793099,0.01108,90272.0,90261.0,0.01107898]
[1767411793804,0.01107714,90276.0,90263.0,0.01107873]
[1767411793961,0.01108,90275.0,90264.0,0.04798334]
[1767411794361,0.01108,90275.0,90263.0,0.01107873]
[1767411794551,0.02215726,90275.0,90261.0,0.06647346]
[1767411794752,0.01107738,90274.0,90260.0,0.24326546]
[1767411794958,0.02215726,90275.0,90261.0,0.01107898]
[1767411795161,0.01107738,90274.0,90261.0,0.01107898]
[1767411795561,0.02215726,90275.0,90262.0,0.01107885]
[1767411795768,0.01108,90275.0,90262.0,0.01107885]
[1767411797209,0.01108,90275.0,90261.0,0.01107898]
[1767411797432,0.01108,90275.0,90263.0,0.01107873]
[1767411797728,0.02215726,90275.0,90261.0,0.01107898]
[1767411798958,0.02215726,90275.0,90262.0,0.01107885]
[1767411799098,0.02215726,90275.0,90260.0,0.30973965]
[1767411799993,0.01107738,90274.0,90260.0,0.25434456]
[1767411800859,0.0110775,90273.0,90260.0,0.25434456]
[1767411801058,0.01107738,90274.0,90261.0,0.06647389]
[1767411801372,0.01107738,90274.0,90261.0,0.01107898]
[1767411802099,0.02215726,90275.0,90262.0,0.01107885]
[1767411802305,0.02215726,90275.0,90261.0,0.01107898]
[1767411802306,0.01107738,90274.0,90261.0,0.01107898]
[1767411802663,0.01107738,90274.0,90260.0,0.24326546]
[1767411802664,0.01107775,90271.0,90260.0,0.24326546]
[1767411803091,0.01107763,90272.0,90260.0,0.24326546]
[1767411803653,0.0110775,90273.0,90260.0,0.24326546]
[1767411804108,0.06646473,90274.0,90260.0,0.24326546]
[1767411804109,0.01107738,90274.0,90260.0,0.24326546]
[1767411804271,0.05884241,90273.0,90260.0,0.25434456]
[1767411804472,0.04776491,90273.0,90260.0,0.25434456]
[1767411804704,0.05884241,90273.0,90259.0,0.01107922]
[1767411805008,0.05884241,90273.0,90260.0,0.24326546]
[1767411805184,0.04776491,90273.0,90261.0,0.01107898]
[1767411805505,0.04776491,90273.0,90260.0,0.24326546]
[1767411805761,0.04776491,90273.0,90261.0,0.01107898]
[1767411805882,0.05884241,90273.0,90260.0,0.24326546]
[1767411806307,0.04776491,90270.0,90257.0,0.01107947]
[1767411806493,0.04776491,90270.0,90260.0,0.24326546]
[1767411806871,0.04776491,90270.0,90260.0,0.25434456]
[1767411807684,0.04776491,90270.0,90261.0,0.01107898]
[1767411808286,0.04776491,90270.0,90260.0,0.2986606]
[1767411808496,0.04776491,90270.0,90260.0,0.24326546]
[1767411808897,0.04776491,90270.0,90260.0,0.25434456]
[1767411809097,0.04776491,90270.0,90260.0,0.24326546]
[1767411809752,0.04776491,90270.0,90260.0,0.25434456]
[1767411810556,0.04776491,90270.0,90260.0,0.0110791]
[1767411810884,0.04776491,90270.0,90261.0,0.01107898]
[1767411813261,0.04776491,90270.0,90262.0,0.01107885]
[1767411813645,0.04776491,90270.0,90261.0,0.01107898]
[1767411813903,0.04776491,90270.0,90262.0,0.01107885]
[1767411815619,0.04776491,90270.0,90263.0,0.01107873]
[1767411816180,0.04776491,90270.0,90264.0,0.01107861]
[1767411816386,0.04776491,90270.0,90262.0,0.01107885]
[1767411817092,0.04776491,90270.0,90261.0,0.01107898]
[1767411817429,0.04776491,90270.0,90262.0,0.01107885]
[1767411819109,0.04776491,90270.0,90261.0,0.01107898]
[1767411819344,0.04776491,90270.0,90262.0,0.01107885]
[1767411819841,0.04776491,90270.0,90261.0,0.01107898]
[1767411820393,0.04776491,90270.0,90262.0,0.01107885]
[1767411821264,0.04776491,90270.0,90261.0,0.01107898]
[1767411821830,0.04776491,90270.0,90260.0,0.0110791]
[1767411822213,0.04776491,90270.0,90261.0,0.01107898]
[1767411823223,0.04776491,90270.0,90262.0,0.01107885]
[1767411825470,0.04776491,90270.0,90261.0,0.01107898]
[1767411825631,0.04776491,90270.0,90262.0,0.01107885]
[1767411826629,0.04776491,90270.0,90263.0,0.01107873]
[1767411827713,0.04776491,90270.0,90262.0,0.01107885]
[1767411828340,0.04776491,90270.0,90261.0,0.01107898]
[1767411829174,0.04776491,90270.0,90262.0,0.01107885]
[1767411829382,0.02215726,90275.0,90261.0,0.01107898]
[1767411829600,0.04594807,90274.0,90262.0,0.01107885]
[1767411829827,0.05702545,90274.0,90261.0,0.01107898]
[1767411830038,0.04594807,90274.0,90262.0,0.01107885]
[1767411831291,0.04594807,90274.0,90263.0,0.01107873]
[1767411831496,0.04594807,90274.0,90262.0,0.01107885]
[1767411831904,0.05702545,90274.0,90260.0,0.0110791]
[1767411832315,0.05702545,90274.0,90257.0,0.01107947]
[1767411832316,0.04594807,90272.0,90257.0,0.01107947]
[1767411832526,0.04594807,90272.0,90259.0,0.01107922]
[1767411832925,0.04594807,90272.0,90261.0,0.01107898]
[1767411835577,0.01108,90271.0,90261.0,0.01107898]
[1767411836912,0.01108,90271.0,90262.0,0.01107885]
[1767411837538,0.01108,90271.0,90260.0,0.0110791]
[1767411837810,0.01108,90271.0,90261.0,0.01107898]
[1767411838908,0.01108,90271.0,90262.0,0.01107885]
[1767411841079,0.01108,90271.0,90263.0,0.01107873]
[1767411841294,0.01108,90271.0,90261.0,0.01107898]
[1767411841494,0.01108,90271.0,90260.0,0.0110791]
[1767411841817,0.01108,90271.0,90261.0,0.01107898]
[1767411842434,0.01108,90271.0,90262.0,0.01107885]
[1767411843562,0.01108,90271.0,90261.0,0.01107898]
[1767411843769,0.01108,90271.0,90262.0,0.01107885]
[1767411846375,0.01108,90271.0,90260.0,0.0110791]
[1767411846579,0.01108,90271.0,90259.0,0.01107922]
[1767411846779,0.01108,90271.0,90261.0,0.01107898]
[1767411846982,0.01108,90271.0,90260.0,0.0110791]
[1767411847389,0.01108,90271.0,90261.0,0.01107898]
[1767411847566,0.05966464,90274.0,90261.0,0.01107898]
[1767411847778,0.01108,90270.0,90261.0,0.01107898]
[1767411849694,0.01108,90270.0,90262.0,0.01107885]
[1767411850952,0.01108,90270.0,90263.0,0.01107873]
[1767411851299,0.01108,90270.0,90262.0,0.01107885]
[1767411853233,0.01108,90270.0,90263.0,0.01107873]
[1767411853854,0.01108,90270.0,90262.0,0.01107885]
[1767411854058,0.01108,90270.0,90263.0,0.01107873]
[1767411855997,0.010081,90270.0,90264.0,0.01107861]
[1767411857126,0.010081,90270.0,90265.0,0.01107849]
[1767411857676,0.010081,90270.0,90264.0,0.01107861]
[1767411858083,0.010081,90270.0,90263.0,0.01107873]
[1767411858285,0.010081,90270.0,90264.0,0.01107861]
[1767411859025,0.010081,90270.0,90263.0,0.01107873]
[1767411859241,0.010081,90270.0,90264.0,0.01107861]
[1767411860216,0.010081,90270.0,90265.0,0.01107849]
[1767411860967,0.04854452,90274.0,90265.0,0.01107849]
[1767411861167,0.01108,90273.0,90264.0,0.01107861]
[1767411861597,0.04858726,90272.0,90264.0,0.01107861]
[1767411861919,0.04854445,90272.0,90264.0,0.01107861]
[1767411862571,0.04854445,90272.0,90263.0,0.01107873]
[1767411863218,0.04854445,90272.0,90264.0,0.01107861]
[1767411864001,0.04854445,90272.0,90263.0,0.01107873]
[1767411864201,0.04854445,90272.0,90262.0,0.01107885]
[1767411864464,0.04854445,90272.0,90264.0,0.01107861]
[1767411865322,0.04854445,90272.0,90262.0,0.01107885]
[1767411865323,0.01108,90273.0,90263.0,0.01107873]
[1767411865524,0.01108,90273.0,90264.0,0.01107861]
[1767411865725,0.01108,90273.0,90263.0,0.01107873]
[1767411866139,0.01108,90273.0,90262.0,0.01107885]
[1767411866304,0.01108,90273.0,90263.0,0.01107873]
[1767411866701,0.01108,90273.0,90263.0,0.02215873]
[1767411866898,0.01108,90273.0,90264.0,0.01107861]
[1767411867419,0.05966726,90273.0,90263.0,0.02215873]
[1767411867822,0.05966726,90273.0,90264.0,0.01107861]
[1767411868119,0.05966726,90273.0,90263.0,0.02215873]
[1767411868841,0.01108,90273.0,90265.0,0.01107849]
[1767411869429,0.01108,90273.0,90263.0,0.02215873]
[1767411869650,0.01108,90273.0,90264.0,0.01107861]
[1767411872468,0.01108,90273.0,90265.0,0.01107849]
[1767411872972,0.01108,90273.0,90264.0,0.01107861]
[1767411873141,0.01108,90273.0,90263.0,0.02215873]
[1767411873486,0.01108,90273.0,90265.0,0.01107849]
[1767411875289,0.01108,90273.0,90264.0,0.01107861]
[1767411876793,0.01108,90273.0,90265.0,0.01107849]
[1767411877532,0.01108,90273.0,90267.0,0.01107824]
[1767411877718,0.01108,90273.0,90266.0,0.01107836]
[1767411878298,0.01108,90273.0,90265.0,0.01107849]
[1767411878630,0.01108,90273.0,90264.0,0.06647167]
[1767411878631,0.0563302,90277.0,90264.0,0.01107861]
[1767411878869,0.01108,90272.0,90265.0,0.01107849]
[1767411879668,0.01108,90272.0,90266.0,0.01107836]
[1767411880247,0.01108,90272.0,90267.0,0.01107824]
[1767411880630,0.01108,90272.0,90266.0,0.01107836]
[1767411880836,0.01108,90272.0,90265.0,0.01107849]
[1767411881379,0.01108,90272.0,90263.0,0.02215873]
[1767411881583,0.01108,90272.0,90264.0,0.01107861]
[1767411882140,0.01108,90272.0,90265.0,0.01107849]
[1767411882574,0.01108,90272.0,90264.0,0.01107861]
[1767411882760,0.01108,90272.0,90265.0,0.01107849]
[1767411883064,0.01108,90272.0,90263.0,0.01108]
[1767411883844,0.01108,90272.0,90263.0,0.02215873]
[1767411884893,0.01108,90272.0,90265.0,0.01107849]
[1767411885209,0.01108,90272.0,90266.0,0.01107836]
[1767411885963,0.01108,90272.0,90267.0,0.01107824]
[1767411887317,0.04525319,90278.0,90266.0,0.01107836]
[1767411887513,0.05633319,90277.0,90267.0,0.01107824]
[1767411888167,0.05633319,90277.0,90266.0,0.01107836]
[1767411888803,0.05633319,90277.0,90267.0,0.01107824]
[1767411889004,0.05633319,90277.0,90268.0,0.01107812]
[1767411889601,0.05633319,90277.0,90267.0,0.01107824]
[1767411889934,0.05633319,90277.0,90266.0,0.01107836]
[1767411890147,0.05633319,90277.0,90268.0,0.01107812]
[1767411890473,0.05633319,90277.0,90267.0,0.01107824]
[1767411891498,0.05633319,90277.0,90266.0,0.01107836]